Cogmind - Beta 16 @@@ ROGUE MODE // 2025.10.24 @ 20:36:52 Player: Moodge Result: Destroyed by S-10 Pest with Light Assault Rifle Performance ------------- Evolutions (1) 500 Regions Visited (3) 600 Robots Destroyed (32) 160 Value Destroyed (998) 998 Prototype IDs (5) 100 Alien Tech Used (0) 0 Bonus (0) 0 TOTAL SCORE: 2358 Bonus ------- None Cogmind --------- Core Integrity 0/400 Matter 285/300 Energy 18/100 System Corruption 1% Temperature Warm (120) Movement Flying (35) Location -9/Materials Parts ------- > --- POWER (2) -------- (None) > --- PROPULSION (2) --- VTOL Module > --- UTILITY (3) ------ Signal Interpreter Seismic Detector > --- WEAPON (2) ------- Spread Laser > --- INVENTORY (5) ---- Light Nuclear Core Signal Interpreter Hardened Light Armor Plating Peak State ------------ > --- POWER ------------ Heavy Ion Engine Light Nuclear Core > --- PROPULSION ------- Improved Treads Improved Treads > --- UTILITY ---------- Disposable Heat Sink Huge Storage Unit Signal Interpreter > --- WEAPON ----------- Improved EM Shotgun > --- INVENTORY -------- Light Ion Engine Light Nuclear Core Armored Wheel Weight Redist. System Signal Interpreter ECM Suite Hardened Light Armor Plating Rocket Launcher [Rating: 18] Favorites ----------- Power Light Ion Engine Engine Light Ion Engine Power Core Light Nuclear Core Propulsion Improved Treads Treads Improved Treads Leg Aluminum Leg Wheel Compact Wheel Hover Unit Hover Unit Flight Unit VTOL Module Utility Disposable Heat Sink Device Disposable Heat Sink Storage Huge Storage Unit Processor Signal Interpreter Protection Hardened Light Armor Plating Weapon Improved EM Shotgun Energy Gun Improved EM Shotgun Energy Cannon Particle Cannon Build | -11 -10 -10 -9 ------- Run | Yrd Mat Min Mat Slots Evolved 2 | . . . 2 Power 1 | . . . 1 Propulsion . | . . . . Utility 1 | . . . 1 Weapon . | . . . . Parts Attached 34 | 5 12 1 16 Power 5 | 1 1 . 3 Engine 4 | 1 1 . 2 Core 1 | . . . 1 Reactor . | . . . . Propulsion 12 | 2 4 . 6 Treads 4 | . 2 . 2 Leg 2 | . 2 . . Wheel 2 | 2 . . . Hover 2 | . . . 2 Flight 2 | . . . 2 Utility 7 | 1 1 1 4 Device 3 | . 1 . 2 Storage 2 | 1 . 1 . Processor 1 | . . . 1 Hackware . | . . . . Protection 1 | . . . 1 Artifact . | . . . . Weapon 10 | 1 6 . 3 Energy Gun 8 | 1 4 . 3 Energy Cannon 2 | . 2 . . Ballistic Gun . | . . . . Ballistic Cannon . | . . . . Launcher . | . . . . Special Weapon . | . . . . Impact Weapon . | . . . . Slashing Weapon . | . . . . Piercing Weapon . | . . . . Special Melee Weapon . | . . . . Unidentified Prototypes 1 | . . . 1 Parts Lost 23 | . 8 1 14 Power 5 | . 1 1 3 Propulsion 7 | . 3 . 4 Utility 4 | . 1 . 3 Weapon 7 | . 3 . 4 Highest Loss Streak 6 | . 6 1 4 To Critical Strikes . | . . . . Average Backups 7 | 3 6 9 6 Power 1 | . 1 1 1 Propulsion 1 | 2 1 2 . Utility 2 | . . 2 3 Weapon 1 | 1 1 2 1 Tool/Special . | . . . . Unused Backups 16 | . 7 1 8 Power 3 | . 1 . 2 Propulsion 4 | . 3 . 1 Utility 5 | . 1 1 3 Weapon 4 | . 2 . 2 Tool/Special . | . . . . Average Slot Usage (%) 83 | . 82 94 78 Engine 9 | . 12 9 7 Core 4 | . . . 8 Treads 15 | . 8 28 13 Wheel 2 | . 9 . . Hover 2 | . 2 . 2 Flight 1 | . . . 3 Device 11 | . 6 14 13 Storage 10 | . 14 14 7 Processor 4 | . . . 9 Protection 1 | . 2 . 1 Energy Gun 16 | . 14 28 11 Energy Cannon 1 | . 6 . . Peak Build Rating 18 | 5 15 15 18 Average Rating 13 | 3 8 14 15 On Entrance 8 | . 5 15 15 Avg Prop Armor Cover (%) 7 | . 3 . 10 Naked Turns . | . . . . Heaviest Build 97 | 10 17 90 97 Greatest Support 46 | 32 46 46 46 Greatest Overweight (x) 32 | 1 4 1 32 Average Overweight (x) 1 | . . . 2 Largest Inventory Capacity 25 | 8 8 25 25 Average Capacity 15 | 7 8 20 18 Most Carried 11 | 5 8 11 11 Average Carried 7 | 4 6 9 6 Final Capacity 25 | 8 8 25 5 Final Carried 11 | 5 8 11 3 Class Distribution -------------------- 100% | Mutant Dominant Class ---------------- Mutant | -10/Materials Mutant | -10/Mines Mutant | -9/Materials Resources | -11 -10 -10 -9 ----------- Run | Yrd Mat Min Mat Matter Collected 475 | 79 221 50 125 Remotely . | . . . . Salvage Created 1236 | . 439 146 651 Parts 77 | . 30 8 39 Haulers Intercepted . | . . . . Recyclers Shooed . | . . . . Parts Field Recycled . | . . . . Retrieved Matter . | . . . . Parts Self-Destructed . | . . . . Prevented . | . . . . Parts Restored . | . . . . Kills | -11 -10 -10 -9 ------- Run | Yrd Mat Min Mat Combat Hostiles Destroyed 29 | . 9 3 17 Guns 18 | . 5 2 11 Cannons 4 | . 4 . . AOE 7 | . . 1 6 Classes Destroyed 6 | . 3 . 3 Worker 1 | . 1 . . Builder 1 | . 1 . . Watcher 1 | . . . 1 Swarmer 6 | . . . 6 Grunt 18 | . 9 3 6 Sentry 5 | . . . 5 Best Kill Streak 7 | . 4 2 7 Combat Bots Only 7 | . 3 2 7 Max Kills in Single Turn 3 | . 1 1 3 Gunslinging . | . . . . Exploded 3 | . . 1 3 Melee . | . . . . Uniques/NPCs Destroyed . | . . . . Combat | -11 -10 -10 -9 -------- Run | Yrd Mat Min Mat Hostile Shots Fired 218 | . 58 17 143 Missed 63 | . 13 5 45 Hits 155 | . 45 12 98 Projectile 155 | . 45 12 98 AOE 2 | . . . 2 Critical Strikes 7 | . 2 . 5 Damage Taken 2352 | . 526 174 1652 Core 550 | . 98 47 405 Absorbed by Shields . | . . . . Regen/Repaired (Parts) 2 | . 2 . . Core Remaining (%) 71 | 100 . 42 . Volleys Fired 80 | . 28 6 46 Largest 2 | . 2 2 1 Hottest 136 | . 136 90 65 Shots Fired 98 | . 39 12 47 Gun 84 | . 25 12 47 Cannon 14 | . 14 . . Launcher . | . . . . Special . | . . . . Kinetic . | . . . . Thermal 23 | . 14 . 9 Explosive . | . . . . Electromagnetic 75 | . 25 12 38 Robot Hit Streak 13 | . 13 9 10 Robot Miss Streak 7 | . 1 1 7 Penetration Max . | . . . . Secondary Targets 1 | . . 1 . Max Gunslinging Chain 1 | . . 1 . Shots Hit Robots 84 | . 29 12 43 Core Hits 57 | . 15 8 34 Critical Kills . | . . . . Critical Parts Destroyed . | . . . . Critical Strikes . | . . . . Melee Attacks . | . . . . Impact . | . . . . Slashing . | . . . . Piercing . | . . . . Sneak Attacks . | . . . . Combat Hostiles . | . . . . Follow-up Attacks . | . . . . Damage Inflicted 2039 | . 586 265 1188 Guns 1221 | . 299 220 702 Cannons 185 | . 185 . . Explosions 633 | . 102 45 486 Melee . | . . . . Ramming . | . . . . Kinetic . | . . . . Thermal 916 | . 287 45 584 Explosive . | . . . . Electromagnetic 1123 | . 299 220 604 Impact . | . . . . Slashing . | . . . . Piercing . | . . . . Highest Corruption 1 | . . . 1 Average Corruption 1 | . . . 1 Corruption Purged . | . . . . Corruption Blocked . | . . . . Effects 6 | . . . 6 Message Errors 2 | . . . 2 Matter Fused 1 | . . . 1 Heat Flow Errors 1 | . . . 1 Data Loss (major) 1 | . . . 1 Misfires 1 | . . . 1 Overload Shots . | . . . . Overflow Damage 113 | . . . 113 Projectiles . | . . . . Explosions 113 | . . . 113 Melee . | . . . . Knockbacks . | . . . . Impact . | . . . . Kinetic . | . . . . Secondary . | . . . . Self-Inflicted Damage 358 | . 4 4 350 Shots 9 | . 1 1 7 Rammed . | . . . . Targets Rammed . | . . . . Kicked . | . . . . Crushed . | . . . . Highest Temperature 223 | . 223 147 203 Average Temperature 59 | . 87 69 32 Received Heat Transfer 963 | . 330 96 537 Siege Activations . | . . . . Martial Activations . | . . . . Shielding Activations . | . . . . Robots Disrupted . | . . . . Combat Hostiles . | . . . . Robots Corrupted . | . . . . Combat Hostiles . | . . . . Parts Fried 2 | . . . 2 Impact Corruptions . | . . . . Robots Melted . | . . . . Combat Hostiles . | . . . . Parts Melted . | . . . . Heat Transferred 1203 | . 483 . 720 Parts Sabotaged . | . . . . Parts Stolen . | . . . . Parts Stripped . | . . . . Power Chain Reactions 8 | . 1 1 6 Alert | -11 -10 -10 -9 ------- Run | Yrd Mat Min Mat Maximum Alert Level . | . . . . Low Security (%) 100 | 100 100 100 100 Level 1 . | . . . . Level 2 . | . . . . Level 3 . | . . . . Level 4 . | . . . . Level 5 . | . . . . High Security . | . . . . Max Security . | . . . . Peak Influence 161 | . 55 45 161 Initial . | . . . . Average 32 | . 15 5 56 Influence Increases 955 | . 252 87 616 Destroy 0b10 Robot/C 580 | . 180 60 340 Destroy 0b10 Robot/NC 15 | . 10 . 5 Destroy Leader 132 | . 30 10 92 Successful Hack 35 | . 16 . 19 Disable Machine 60 | . . 15 45 Destroy Structure 88 | . 1 2 85 Lose Combat Pursuer 45 | . 15 . 30 Influence Decreases 847 | . 252 87 508 Time Decay 671 | . 202 77 392 Lost Part 176 | . 50 10 116 Squads Dispatched 3 | . 1 . 2 Investigation 2 | . 1 . 1 Extermination . | . . . . Reinforcement 1 | . . . 1 Assault . | . . . . Garrison . | . . . . Intercept . | . . . . Searches Triggered . | . . . . Construction Impeded . | . . . . Haulers Reinforced . | . . . . Active Scanning Responses . | . . . . Cargo Convoy Interrupts . | . . . . Stealth | -11 -10 -10 -9 --------- Run | Yrd Mat Min Mat Distress Signals 2 | . . . 2 Communications Jammed . | . . . . Distress Signals . | . . . . Times Spotted 43 | . 14 4 25 Peak Tracking Total 9 | . 3 2 9 Tactical Retreats 3 | . 1 . 2 Traps | -11 -10 -10 -9 ------- Run | Yrd Mat Min Mat Traps Triggered 1 | . 1 . . Indirectly . | . . . . Trap Hack Attempts . | . . . . Triggered . | . . . . Disarmed . | . . . . Reprogrammed . | . . . . Reused . | . . . . Traps Extracted . | . . . . Installed . | . . . . Triggered . | . . . . Machines | -11 -10 -10 -9 ---------- Run | Yrd Mat Min Mat Machines Disabled 4 | . . 1 3 Max in Single Turn 2 | . . 1 2 Machines Repaired . | . . . . Machines Dismantled . | . . . . Machines Sabotaged . | . . . . Overloaded Fab Kills . | . . . . Hacking | -11 -10 -10 -9 --------- Run | Yrd Mat Min Mat Machines Accessed 8 | . 4 . 4 Terminals 5 | . 2 . 3 Fabricators . | . . . . Repair Stations 1 | . 1 . . Recycling Units 2 | . 1 . 1 Scanalyzers . | . . . . Garrison Access . | . . . . Total Hacks 18 | . 10 . 8 Successful 13 | . 7 . 6 Failed 5 | . 3 . 2 Catastrophic 1 | . . . 1 Database Lockouts . | . . . . Manual . | . . . . Terminals 12 | . 5 . 7 Fabricators . | . . . . Repair Stations 4 | . 4 . . Recycling Units 2 | . 1 . 1 Scanalyzers . | . . . . Garrison Access . | . . . . Terminal Hacks 8 | . 3 . 5 Prototype ID Bank 3 | . 2 . 1 Scanalyzer Index 1 | . . . 1 Alert Level 1 | . . . 1 Transport Status 1 | . 1 . . Recall Investigation 1 | . . . 1 Zone Layout 1 | . . . 1 Fabricator Hacks . | . . . . Repair Station Hacks 3 | . 3 . . Scan Component 1 | . 1 . . Repair 1 | . 1 . . Refit 1 | . 1 . . Recycling Unit Hacks 2 | . 1 . 1 Report Inventory 2 | . 1 . 1 Scanalyzer . | . . . . Garrison Access Hacks . | . . . . Unauthorized Hacks . | . . . . Terminals . | . . . . Fabricators . | . . . . Repair Stations . | . . . . Recycling Units . | . . . . Scanalyzers . | . . . . Garrison Access . | . . . . Data Cores Recovered . | . . . . Used . | . . . . Hacking Detections 6 | . 3 . 3 Full Trace Events 2 | . . . 2 Feedback Events . | . . . . Feedback Blocked . | . . . . Robot Schematics Acquired . | . . . . Robots Built . | . . . . Authchips . | . . . . Time . | . . . . Total Robot Build Rating . | . . . . Part Schematics Acquired . | . . . . Parts Built . | . . . . Authchips . | . . . . Time . | . . . . Total Part Build Rating . | . . . . Part Studies Acquired . | . . . . Parts Repaired 1 | . 1 . . Time 53 | . 53 . . Parts Recycled . | . . . . Recycled Matter . | . . . . Retrieved Matter . | . . . . Retrieved Components . | . . . . Parts Scanalyzed . | . . . . Part Schematics Acquired . | . . . . Parts Damaged . | . . . . Bothacking | -11 -10 -10 -9 ------------ Run | Yrd Mat Min Mat Used RIF Installer . | . . . . Robots Hacked . | . . . . Non-combat . | . . . . Combat . | . . . . Robot Hacks Applied . | . . . . Relay Couplers Released . | . . . . Fabnet Peak Effective % . | . . . . Robots Rewired . | . . . . Allies Hacked . | . . . . Hacks Repelled . | . . . . Allies | -11 -10 -10 -9 -------- Run | Yrd Mat Min Mat Total Allies . | . . . . Largest Group . | . . . . Highest-Rated Group . | . . . . Highest-Rated Ally . | . . . . Total Orders . | . . . . Ally Attacks . | . . . . Total Damage . | . . . . Kills . | . . . . Allies Corrupted . | . . . . Allies Melted . | . . . . Intel | -11 -10 -10 -9 ------- Run | Yrd Mat Min Mat Active Infowar (turns) 214 | . . . 214 Sensors 191 | . . . 191 Seismic 75 | . . . 75 Robot Analysis Total . | . . . . Derelict Logs Recovered . | . . . . Drone Launches . | . . . . Drone Recoveries . | . . . . Exploration | -11 -10 -10 -9 ------------- Run | Yrd Mat Min Mat Turns Passed 2355 | 56 680 498 1121 Spaces Moved 975 | 46 346 205 378 Core 35 | 16 7 . 12 Treads 487 | . 118 205 164 Legs 57 | . 57 . . Wheels 153 | 30 123 . . Hover 136 | . 41 . 95 Flight 107 | . . . 107 Fastest Speed 50 | 50 85 160 112 Average Speed 190 | 83 134 210 243 Slowest Speed 1650 | 100 250 240 1650 Overloaded Moves . | . . . . Propulsion Burnouts . | . . . . Robots Hopped . | . . . . Potential Cave-ins . | . . . . Cave-ins Triggered . | . . . . Exploration Rate (%) 38 | 3 62 48 39 Regions Visited 3 Branch Regions 1 Pre-discovered Areas . | . . . . Known Exits Taken . | . . . . Unknown Exits Taken 3 | 1 1 1 . Scrap Searched . | . . . . Spaces Dug . | . . . . Terrain Destroyed 97 | . 1 2 94 Melee . | . . . . Projectile . | . . . . AOE 97 | . 1 2 94 Terrain Rammed . | . . . . Walls Destroyed . | . . . . Machines Disabled . | . . . . Actions | -11 -10 -10 -9 --------- Run | Yrd Mat Min Mat Total 1386 | 62 527 262 535 Wait 234 | 4 109 45 76 Move 972 | 45 345 204 378 Hop . | . . . . Pick Up 45 | 8 21 4 12 Fast Attach 6 | 2 3 . 1 Attach 22 | 3 7 . 12 Detach . | . . . . Swap 7 | . 2 1 4 Drop 20 | . 12 2 6 Fire 80 | . 28 6 46 Melee . | . . . . Ram . | . . . . Kick . | . . . . Crush . | . . . . Escape Stasis . | . . . . Rewire . | . . . . Trap . | . . . . Miscellaneous . | . . . . Route ------- -11/Scrapyard -10/Materials (discovered 2 exits: [*Min x2]) -10/Mines -9/Materials (discovered 2 exits: [*Mat] / [*Min]) History --------- Turn | Location | Event 12 | -11/Scrapyard | Discovered new exit (range 15) 57 | -11/Scrapyard | Entered Materials 300 | -10/Materials | Repaired Corrupted Lgt. Nuclear Core 305 | -10/Materials | Build established: Mutant 420 | -10/Materials | Lost 6 parts (1p1n1u3w) 420 | -10/Materials | Discovered new exit (range 15) 660 | -10/Materials | Discovered new exit (range 16) 737 | -10/Materials | Entered Mines 813 | -10/Mines | Received a Rocket Launcher from a helpful Derelict 1050 | -10/Mines | Core integrity fell below 50% 1214 | -10/Mines | Discovered new exit (range 9) 1235 | -10/Mines | Entered Materials 1235 | -9/Materials | Evolved 2 slots: Power x1, Utility x1 1374 | -9/Materials | Destroyed 7 combat bots 1377 | -9/Materials | Lost 3 parts (1n2w) 1749 | -9/Materials | Discovered new exit (range 6) 1998 | -9/Materials | Core integrity fell below 50% 2069 | -9/Materials | Discovered new exit (range 3) 2302 | -9/Materials | Core integrity fell below 20% 2332 | -9/Materials | Lost 4 parts (1p1n1u1w) 2356 | -9/Materials | Destroyed by S-10 Pest with Light Assault Rifle Last Messages --------------- 02301_ Destroyed VTOL Module. 02301_ Disposable Heat Sink destroyed. 02301_ Destroyed Disposable Heat Sink. 02301_ Fusion Modulator explodes. 02301_ Faulty Hvy. Ion Engine destroyed. 02301_ Destroyed Faulty Hvy. Ion Engine. 02301_ Fusion Modulator explodes. 02307_ U-05 Engineer builds a Wall. 02309_ U-05 Engineer lays Concrete. 02310_ U-05 Engineer builds a Wall. 02332_ Connecting with Terminal... >>Alert(Check) Current Alert Level: Low Security >>Layout(Zone) Retrieving Zone 9X layout... Downloaded map data. 02336_ R-06 Scavenger collects Spread Laser. 02347_ S-10 Pest destroyed. 02355_ Critical hit (Burn: +37). 02355_ Sensor Array destroyed. Map ----- +----------------------------------------------------+ | ?????????????????????????????????????????????????? | | ?????????????????????????????????????????????????? | | ?????????????????????????????????????????????????? | | ?????????????????????????????????????????????????? | | ?????????????????????????????????????????????????? | | ?????????????????????????????????????????????????? | | ?????????????????????????????????????????????????? | | ?????????????????????????????????????????????????? | | ????? ## " # # # """ """ #?????????????? | | ????? ## # # # """ """ #?????????????? | | ????? ## """ # # # """ """ #?????????????? | | ????? ## """ # + # """ """ #?????????????? | | ?????### """ # # # """ """ #?????????????? | | ???????# # # # #?????????????? | | ???????# ######## # #?????????????? | | ???????# #?????# ###+#######?????????????? | | ???????# #?????# ?????????????? | | ?#########+######### ?????????????? | | ?# """ # ?????????????? | | ?# """ #!^ ###/#######?????????????? | | ?# """ [# ^ ^ ## s #?#?????????????? | | ?# %+ ! ^ ## """ ###?????????????? | | ?# !#% ! "" ## """ ##?????????????? | | ?# #[ !! T" ##=""" ###?????????????? | | ######### "" ##s""" #?#?????????????? | | @%* Y #?#?????????????? | | ## !! [#?#?????????????? | | #### ## ![ #?#?????????????? | | ##########/#########??# ## #?#?????????????? | | #?#" [ "##????# ## ! #?#?????????????? | | ###" = " #????# ## #?#?????????????? | | ## " " ###??# ##########?#?????????????? | | ###" " #??# #??????#####?????????????? | | ## " = #??# #??????# ?????????????? | | =## " ""##### #??????# ?????????????? | | #?#" [ #??????# ?????????????? | | ! #?#" ] ""#######??????# ?????????????? | | #?###"" """""#####????????# ?????????????? | | ###???### """ #????????# ?????????????? | | ????????### # """ ??##????????????????????????? | | ????????###### """ ?# #???????????????????????? | | ######## # """ ## ???????????????????????? | | # ## ???????????????????????? | | + ## """"??#????????????????? | | # ? ## """"" #????????????????? | | +### "" # "T???? ## """"" #????????????????? | | "" ## ""?????## """"" #????????????????? | | " ######?????# """"" #????????????????? | | "" #?????# """"" #????????????????? | | " + #????????????????? | +----------------------------------------------------+ Best States ------------- Heat Dissipation 28 Coolant Potential 50 Energy Generation 14 Energy Capacity 250 Matter Stores 300 Matter Capacity 300 Sight Range 16 Robot Scan Range 14 Terrain Scan Density 10 Armor Coverage 150 Evasion (%) 55 Recoil Reduction 2 Item Schematics ----------------- None Robot Schematics ------------------ None Fabricated ------------ Nothing Repaired ---------- Lgt. Nuclear Core | 96% | -10/Materials | Corrupted Studied --------- None Alien Tech Used ----------------- None Achievements -------------- None Challenges ------------ None Game ------ Seed DispersionDeflectorFirepult Manual? 0 Play Time 00:21:26 Cumulative 15.4 hours Start 2025.10.24 @ 20:16:31 End 2025.10.24 @ 20:36:52 Sessions 1 Manual Loads 0 Difficulty Rogue Special Mode None Game No. 48 Rogue 48 Adventurer 0 Explorer 0 Win Type - Total 0 Types 0/0/0/0/0/0/0/0/0/0 Lore% 9 Gallery% 19 Achievement% 15 Wizard Run 0 Options --------- Layout 1 ASCII 0 Keyboard 0 Movement Mouse Keybinds 0 Fullscreen 1 Font 32/SmallcapsGlow Map View 50x35 Zoom Use 0% Tactical HUD 1 Map Filters NONE Filters NONE Steam 1 RUN: 804d91f2-87f4-4dc9-b05b-d70217b8f877